bitfinex/quotes_SOLUSD_20240628
["timestamp","ask_amount","ask_price","bid_price","bid_amount"]
[1719569399216,12.32879137,145.52,145.49,39.946]
[1719569399536,15.89,145.54,145.49,39.946]
[1719569399839,12.27505848,145.53,145.5,6.8727]
[1719569400046,15.89,145.54,145.5,6.8727]
[1719569400213,12.27506451,145.53,145.5,6.8727]
[1719569400414,15.89,145.54,145.5,6.8727]
[1719569400626,12.27507032,145.53,145.51,24.053]
[1719569400829,15.89,145.55,145.51,17.1807]
[1719569401042,32.27502261,145.54,145.51,17.1807]
[1719569401230,12.27502261,145.53,145.51,17.1807]
[1719569401435,12.27502261,145.53,145.51,24.0529]
[1719569402235,20.0,145.54,145.51,24.0529]
[1719569402743,20.0,145.54,145.51,17.1807]
[1719569402931,20.0,145.54,145.5,22.5264]
[1719569403634,15.89,145.53,145.5,15.6537]
[1719569403820,15.89,145.52,145.5,15.6537]
[1719569404143,15.89,145.53,145.5,15.6537]
[1719569404640,15.89,145.53,145.5,32.8354]
[1719569404946,15.89,145.55,145.51,6.8722]
[1719569405243,12.27505152,145.54,145.51,6.8722]
[1719569405546,15.89,145.55,145.51,6.8722]
[1719569405724,12.27497597,145.54,145.51,6.8722]
[1719569405924,15.89,145.55,145.51,7.39956607]
[1719569406133,12.27497061,145.54,145.51,7.39956607]
[1719569406449,15.89,145.55,145.51,6.8722]
[1719569406631,15.89,145.55,145.51,8.24647074]
[1719569406832,15.89,145.55,145.5,39.7081]
[1719569407130,15.89,145.54,145.5,39.7081]
[1719569407326,15.89,145.54,145.5,32.8354]
[1719569407558,3.60548307,145.59,145.52,24.0513]
[1719569407727,15.89,145.57,145.52,24.0513]
[1719569407928,12.27496253,145.56,145.52,33.0696]
[1719569408136,15.89,145.57,145.52,33.0696]
[1719569408327,12.27422486,145.56,145.53,6.8712]
[1719569408647,15.89,145.58,145.53,6.8712]
[1719569408835,12.27443998,145.57,145.54,6.8708]
[1719569409043,3.60548307,145.6,145.54,6.8708]
[1719569409044,15.89,145.59,145.54,6.8708]
[1719569409219,12.27396208,145.58,145.54,6.8708]
[1719569409419,3.60548307,145.63,145.55,6.8704]
[1719569409746,15.89,145.6,145.55,6.8704]
[1719569409948,12.27350372,145.59,145.55,6.8704]
[1719569410127,15.89,145.6,145.55,6.8704]
[1719569410533,24.26548307,145.64,145.56,6.8699]
[1719569410828,12.27331382,145.63,145.57,6.8694]
[1719569411032,3.60548307,145.64,145.57,6.8694]
[1719569411033,12.27331382,145.62,145.57,6.8694]
[1719569411230,12.27331382,145.61,145.57,6.8694]
[1719569411557,15.89,145.62,145.58,6.8687]
[1719569411749,11.90468802,145.65,145.58,6.8687]
[1719569411750,6.4029,145.65,145.58,6.8687]
[1719569412050,15.89,145.62,145.58,6.8687]
[1719569412543,316.84053483,145.67,145.59,6.8684]
[1719569412761,15.89,145.63,145.59,6.8684]
[1719569412928,15.89,145.63,145.58,39.9311]
[1719569413123,15.89,145.63,145.58,24.0411]
[1719569413740,15.89,145.62,145.58,24.0411]
[1719569414265,15.89,145.63,145.58,24.0411]
[1719569414625,15.89,145.63,145.59,6.8685]
[1719569415148,248.5552452,145.67,145.6,33.06]
[1719569415365,35.89,145.66,145.61,6.8675]
[1719569415534,15.89,145.66,145.61,6.8675]
[1719569416244,15.89,145.66,145.6,56.412]
[1719569416447,15.89,145.66,145.61,0.39966468]
[1719569416750,5.50178802,145.68,145.6,56.412]
[1719569416751,15.89,145.63,145.6,16.4841]
[1719569418427,5.50178802,145.68,145.6,16.4841]
[1719569418634,15.89,145.64,145.6,23.3519]
[1719569418861,15.89,145.65,145.6,23.3519]
[1719569419059,20.0,145.64,145.6,24.72280237]
[1719569419431,15.89,145.65,145.61,8.2383084]
[1719569419637,15.89,145.65,145.61,1.3708084]
[1719569421127,15.89,145.65,145.61,8.2382084]
[1719569422243,15.89,145.65,145.61,1.3708084]
[1719569422445,15.89,145.65,145.6,16.4841]
[1719569422744,20.0,145.67,145.59,17.1714]
[1719569422745,15.89,145.62,145.59,17.1714]
[1719569423566,15.89,145.62,145.59,24.0399]
[1719569424354,15.89,145.62,145.56,32.5879]
[1719569424566,15.89,145.6,145.56,39.4575]
[1719569425261,15.89,145.6,145.57,6.8695]
[1719569425463,20.0,145.61,145.59,6.8685]
[1719569425779,15.89,145.62,145.58,17.1725]
[1719569426140,15.89,145.62,145.59,6.8685]
[1719569427387,15.89,145.62,145.58,24.0414]
[1719569427533,20.0,145.66,145.59,6.8685]
[1719569427732,15.89,145.62,145.58,24.0413]
[1719569428153,83.56,145.67,145.59,6.8686]
[1719569428344,15.89,145.63,145.59,6.8686]
[1719569428543,20.0,145.62,145.59,6.8686]
[1719569429058,20.0,145.62,145.6,6.868]
[1719569429257,15.89,145.64,145.6,6.868]
[1719569429258,20.0,145.63,145.6,6.868]
[1719569430536,20.0,145.63,145.59,22.7584]
[1719569430753,20.0,145.63,145.59,6.8684]
[1719569431839,35.89,145.63,145.58,17.1725]
[1719569432049,35.89,145.63,145.58,24.0413]
[1719569434248,20.0,145.63,145.59,6.8685]
[1719569434562,20.0,145.66,145.59,6.8685]
[1719569436456,20.0,145.66,145.58,39.9313]
[1719569439046,15.89,145.62,145.58,17.1725]
[1719569439756,15.89,145.61,145.58,17.1725]
[1719569443156,15.89,145.61,145.58,24.0415]
[1719569443352,20.0,145.66,145.6,6.868]
[1719569443559,15.89,145.64,145.61,6.8676]
[1719569443759,15.89,145.64,145.59,33.0603]
[1719569443760,20.0,145.63,145.59,33.0603]
[1719569444072,20.0,145.63,145.6,6.8678]
[1719569444947,20.0,145.63,145.59,24.0387]
[1719569447567,20.0,145.63,145.56,22.2833]
[1719569447568,15.89,145.6,145.56,22.2833]
[1719569447864,15.89,145.6,145.57,6.8694]
[1719569449483,15.89,145.58,145.56,15.4136]
[1719569450072,15.89,145.58,145.55,17.1758]
[1719569450456,15.89,145.58,145.53,15.4519]
[1719569450655,15.89,145.57,145.53,22.3231]
[1719569450880,15.89,145.57,145.54,6.8709]
[1719569451469,15.89,145.57,145.53,22.3232]
[1719569451669,20.0,145.59,145.53,22.3232]
[1719569451670,15.89,145.56,145.53,22.3232]
[1719569453590,15.89,145.56,145.54,6.8709]
[1719569453952,15.89,145.56,145.53,22.3232]
[1719569455074,20.0,145.59,145.53,22.3232]
[1719569455250,15.89,145.56,145.53,22.3232]
[1719569458356,15.89,145.56,145.54,6.8708]
[1719569459196,15.89,145.57,145.55,6.8704]
[1719569459561,20.0,145.62,145.55,6.8704]
[1719569459761,15.89,145.58,145.55,6.8704]
[1719569459976,35.89,145.57,145.55,6.8704]
[1719569460265,35.89,145.57,145.54,24.048]
[1719569460886,35.89,145.57,145.54,17.1772]
[1719569461278,20.0,145.57,145.54,24.0481]
[1719569461489,15.89,145.56,145.54,24.0481]
[1719569462990,15.89,145.55,145.51,6.8721]
[1719569463159,15.89,145.54,145.51,6.8721]
[1719569463782,15.89,145.52,145.47,38.4339]
[1719569463974,15.89,145.52,145.48,6.8733]
[1719569464178,15.89,145.52,145.49,6.8731]
[1719569464684,15.89,145.52,145.47,38.4339]
[1719569464685,15.89,145.52,145.5,6.8727]
[1719569465190,15.89,145.52,145.49,24.0561]
[1719569467868,15.89,145.51,145.49,24.0561]
[1719569469390,15.89,145.51,145.49,17.183]
[1719569469692,15.89,145.51,145.49,24.0562]
[1719569469884,73.79828802,145.58,145.49,17.183]
[1719569470086,15.89,145.53,145.47,15.1625]
[1719569470294,15.89,145.5,145.47,22.0363]
[1719569470594,15.89,145.5,145.48,6.8737]
[1719569471292,82.04,145.57,145.49,6.873]
[1719569471499,15.89,145.52,145.49,6.873]
[1719569472489,15.89,145.51,145.48,24.0573]
[1719569473084,15.89,145.52,145.49,6.8731]
[1719569473412,20.0,145.51,145.49,6.8731]
[1719569473902,16.48357765,145.58,145.53,6.8712]
[1719569474111,15.89,145.56,145.52,17.1791]
[1719569474278,15.89,145.56,145.52,24.0507]
[1719569474478,15.89,145.56,145.52,17.1791]
[1719569474680,15.89,145.56,145.51,6.8723]
[1719569474879,6.2565,145.58,145.51,6.8723]
[1719569475104,15.89,145.54,145.51,6.8723]
[1719569475301,15.89,145.54,145.5,6.8726]
[1719569475794,15.89,145.55,145.51,6.8723]
[1719569475998,15.89,145.55,145.52,6.8718]
[1719569477083,15.89,145.55,145.51,24.0531]
[1719569479506,15.89,145.55,145.51,17.1809]
[1719569479717,15.89,145.54,145.51,17.1809]
[1719569479878,15.89,145.54,145.51,24.0532]
[1719569480396,15.89,145.54,145.51,17.1809]
[1719569481894,15.89,145.54,145.5,6.8726]
[1719569482896,15.89,145.54,145.5,24.0546]
[1719569483503,15.89,145.54,145.5,17.182]
[1719569483808,20.0,145.53,145.5,24.0546]
[1719569487603,35.89,145.53,145.5,24.0546]
[1719569496180,15.89,145.53,145.5,24.0546]
[1719569496994,15.89,145.52,145.5,17.182]
[1719569503787,15.89,145.51,145.47,39.2211]
[1719569504101,35.89,145.5,145.43,16.6263]
[1719569504303,15.89,145.49,145.46,6.8747]
[1719569506994,15.89,145.49,145.47,6.8742]
[1719569507195,15.89,145.49,145.45,17.1879]
[1719569507396,15.89,145.49,145.46,6.8745]
[1719569508414,15.89,145.48,145.46,6.8745]
[1719569508809,15.89,145.48,145.45,24.063]
[1719569510104,15.89,145.46,145.44,7.7047452]
[1719569510317,15.89,145.46,145.44,0.8292452]
[1719569510495,71.13656314,145.52,145.44,0.8292452]
[1719569510815,15.89,145.46,145.44,0.8292452]
[1719569518720,5.50178802,145.52,145.44,18.0180452]
[1719569518920,15.89,145.49,145.44,18.0180452]
[1719569519106,20.0,145.48,145.46,6.8746]
[1719569519826,20.0,145.48,145.44,18.0180452]
[1719569520128,15.89,145.47,145.44,18.0180452]
[1719569522807,22.7645,145.47,145.44,18.0180452]
[1719569523203,6.8745,145.47,145.44,18.0180452]
[1719569524846,6.8736,145.49,145.45,6.8748]
[1719569526037,22.763,145.5,145.46,6.8747]
[1719569526401,20.0,145.49,145.46,6.8747]
[1719569527942,56.92282558,145.56,145.47,6.8741]
[1719569528113,15.89,145.52,145.47,6.8741]
[1719569528315,20.0,145.51,145.47,6.8741]
[1719569528710,20.0,145.51,145.48,6.8736]
[1719569529010,17.44983848,145.56,145.47,22.764]
[1719569529011,15.89,145.53,145.47,22.764]
[1719569529212,20.0,145.52,145.47,22.764]
[1719569531533,20.0,145.52,145.48,22.7637]
[1719569531731,20.0,145.53,145.48,22.7637]
[1719569531913,20.0,145.53,145.49,15.89]
[1719569532333,20.0,145.53,145.48,22.7637]
[1719569533834,6.8726,145.51,145.48,15.89]
[1719569534129,6.8726,145.51,145.47,22.7642]
[1719569534344,6.8728,145.5,145.47,15.89]
[1719569534713,6.8734,145.49,145.46,39.9511]
[1719569534913,6.8729,145.5,145.46,39.9511]
[1719569535217,6.8726,145.51,145.47,22.7639]
[1719569535737,6.8728,145.5,145.47,22.7639]
[1719569535913,6.8728,145.5,145.47,15.89]
[1719569536116,15.89,145.52,145.45,22.9354]
[1719569536444,20.0,145.53,145.45,56.0133]
[1719569536445,6.8734,145.49,145.45,56.0133]
[1719569536737,6.8734,145.49,145.46,6.8747]
[1719569537325,6.873,145.5,145.46,6.8747]
[1719569537522,6.873,145.5,145.47,6.8742]
[1719569537721,42.7624,145.51,145.47,24.0598]
[1719569537914,26.8724,145.51,145.47,24.0598]
[1719569539134,20.0,145.51,145.48,6.8737]
[1719569539633,20.0,145.51,145.48,22.7637]
[1719569540026,20.0,145.51,145.48,6.8737]
[1719569540536,26.8724,145.51,145.47,39.9496]
[1719569541133,26.8724,145.51,145.48,6.8737]
[1719569541418,20.0,145.51,145.48,6.8737]
[1719569542733,26.8725,145.51,145.48,6.8737]
[1719569542935,6.8728,145.5,145.47,17.1856]
[1719569543122,6.8728,145.5,145.47,24.0598]
[1719569549442,22.7625,145.51,145.47,24.0598]
[1719569549645,15.89,145.52,145.48,6.8736]
[1719569549847,20.0,145.51,145.48,6.8736]
[1719569550046,11.74528802,145.56,145.5,6.8727]
[1719569550221,39.14595736,145.55,145.51,6.8722]
[1719569550426,12.27535736,145.54,145.51,6.8722]
[1719569550620,20.0,145.53,145.51,6.8722]
[1719569550863,6.871,145.54,145.5,39.0001]
[1719569551044,20.0,145.53,145.5,39.0001]
[1719569555059,6.8704,145.56,145.5,16.2375]
[1719569555261,22.67258802,145.6,145.52,22.7616]
[1719569555262,19.14511071,145.55,145.52,22.7616]
[1719569555450,6.8705,145.55,145.52,22.7616]
[1719569556036,6.8701,145.56,145.52,22.7616]
[1719569557042,6.8705,145.55,145.51,39.9431]
[1719569557243,6.8701,145.56,145.52,6.8714]
[1719569558568,6.2245,145.59,145.51,39.9431]
[1719569558569,6.8706,145.55,145.51,39.9431]
[1719569559347,6.8714,145.54,145.5,39.0002]
[1719569560059,6.8706,145.55,145.51,6.8722]
[1719569560485,6.8709,145.54,145.51,6.8722]
[1719569560693,6.8709,145.54,145.5,56.1821]
[1719569560883,15.89,145.53,145.5,16.2375]
[1719569561550,15.89,145.53,145.48,6.8737]
[1719569561751,22.7621,145.52,145.48,6.8737]
[1719569562256,22.762,145.52,145.48,6.8737]
[1719569562561,22.762,145.52,145.49,6.8732]
[1719569563554,22.762,145.52,145.48,6.8736]
[1719569563886,6.8724,145.51,145.47,24.0588]
[1719569564592,6.8724,145.51,145.48,6.8737]
[1719569565856,22.762,145.52,145.48,6.8737]
[1719569566056,15.89,145.52,145.49,6.8733]
[1719569566283,22.7615,145.53,145.49,24.0564]
[1719569569384,12.27554725,145.52,145.49,24.0564]
[1719569569668,22.7615,145.53,145.49,24.0564]
[1719569570585,6.8711,145.54,145.49,17.1831]
[1719569570776,20.0,145.53,145.51,6.8723]
[1719569571103,20.0,145.54,145.52,6.8717]
[1719569571392,22.7602,145.56,145.52,6.8717]
[1719569571393,22.7601,145.56,145.52,6.8717]
[1719569571700,12.27479402,145.55,145.53,6.8713]
[1719569571907,22.7597,145.57,145.53,6.8713]
[1719569572065,32.27432016,145.56,145.53,6.8713]
[1719569572389,32.27432016,145.56,145.52,15.89]
[1719569572390,12.27432016,145.55,145.52,22.7616]
[1719569572599,26.8701,145.56,145.52,22.7616]
[1719569572804,12.2745922,145.55,145.52,22.7616]
[1719569572973,26.8701,145.56,145.52,22.7616]
[1719569573174,12.2745922,145.55,145.52,22.7616]
[1719569573493,26.8701,145.56,145.52,22.7616]
[1719569573691,12.2745922,145.55,145.52,22.7616]
[1719569573871,26.8701,145.56,145.52,22.7616]
[1719569574074,12.2745922,145.55,145.52,22.7616]
[1719569574299,26.8701,145.56,145.52,22.7616]
[1719569574486,12.27458223,145.55,145.52,22.7616]
[1719569574690,20.0,145.56,145.52,22.7616]
[1719569574904,12.27430326,145.55,145.53,22.7612]
[1719569575202,20.0,145.56,145.54,22.7609]
[1719569575772,6.8697,145.57,145.54,22.7609]
[1719569575998,12.27385308,145.56,145.55,22.7604]
[1719569576192,6.8687,145.59,145.55,22.7604]
[1719569576407,12.27328687,145.58,145.55,22.7604]
[1719569576576,6.8687,145.59,145.55,22.7604]
[1719569576782,12.27324866,145.58,145.55,22.7604]
[1719569576980,6.8687,145.59,145.55,22.7604]
[1719569577181,12.273229,145.58,145.55,22.7604]
[1719569577540,6.8687,145.59,145.55,22.7604]
[1719569577694,12.27322788,145.58,145.56,22.76]
[1719569577869,6.8687,145.59,145.56,15.89]
[1719569578804,6.8687,145.59,145.55,39.9363]
[1719569579478,6.8697,145.57,145.54,15.89]
[1719569579672,6.8697,145.57,145.54,22.7608]
[1719569580404,6.8692,145.58,145.54,22.7608]
[1719569581608,6.8692,145.58,145.54,39.9382]
[1719569583110,15.89,145.6,145.55,6.8704]
[1719569583278,39.14216708,145.59,145.55,15.89]
[1719569583609,26.8686,145.59,145.55,15.89]
[1719569583906,26.8686,145.59,145.54,33.0674]
[1719569584078,26.8686,145.59,145.55,6.8703]
[1719569584407,6.8691,145.58,145.54,39.9381]
[1719569584571,6.8696,145.57,145.54,24.0481]
[1719569584772,6.8696,145.57,145.53,6.8712]
[1719569584773,6.8697,145.57,145.53,6.8712]
[1719569586817,6.8697,145.57,145.54,6.8708]
[1719569587312,6.8697,145.57,145.53,6.8713]
[1719569587774,22.7597,145.57,145.53,6.8713]
[1719569587978,22.7592,145.58,145.54,17.1773]
[1719569588310,20.0,145.57,145.55,6.8704]
[1719569589988,20.0,145.58,145.55,6.8704]
[1719569591720,26.8691,145.58,145.55,6.8704]
[1719569591916,26.8691,145.58,145.54,24.048]
[1719569592720,42.7591,145.58,145.54,24.048]
[1719569597704,26.8691,145.58,145.54,24.048]
[1719569600938,6.8695,145.57,145.54,24.048]
[1719569602029,26.8692,145.58,145.54,24.048]
[1719569602214,20.0,145.58,145.56,6.8698]
[1719569602415,22.7583,145.6,145.56,6.8698]
[1719569602416,20.0,145.59,145.56,6.8698]
[1719569602621,12.27376847,145.58,145.56,6.8698]
[1719569602831,22.7583,145.6,145.57,6.8695]
[1719569602832,6.8682,145.6,145.57,6.8695]
[1719569603004,32.27347736,145.59,145.57,6.8695]
[1719569603210,20.0,145.59,145.57,6.8695]
[1719569603630,26.8686,145.59,145.56,6.8698]
[1719569604535,20.0,145.59,145.56,6.8698]
[1719569606012,22.7583,145.6,145.56,6.8698]
[1719569606216,12.27333096,145.59,145.56,6.8698]
[1719569606511,22.7583,145.6,145.56,6.8698]
[1719569606710,32.27332984,145.59,145.56,6.8698]
[1719569606932,20.0,145.59,145.56,6.8698]
[1719569610436,42.7587,145.59,145.55,24.0453]
[1719569610610,12.27371741,145.58,145.55,24.0453]
[1719569610810,42.7587,145.59,145.55,24.0453]
[1719569611029,28.16376903,145.58,145.55,24.0453]
[1719569611231,15.89,145.58,145.55,24.0453]
[1719569612251,26.8687,145.59,145.55,24.0453]
[1719569612416,28.16367886,145.58,145.56,6.87]
[1719569612747,15.89,145.58,145.56,6.87]
[1719569613042,26.8687,145.59,145.56,6.87]
[1719569613043,42.7587,145.59,145.56,6.87]
[1719569613225,12.27359326,145.58,145.56,6.87]
[1719569613537,42.7587,145.59,145.56,6.87]
[1719569613837,12.27370585,145.58,145.56,6.87]
[1719569614139,35.89,145.59,145.56,6.87]
[1719569614432,12.27366296,145.58,145.56,6.87]
[1719569614617,35.89,145.59,145.56,6.87]
[1719569614817,15.89,145.57,145.55,17.1751]
[1719569615244,12.27408022,145.56,145.55,17.1751]
[1719569615452,15.89,145.57,145.55,17.1751]
[1719569615616,12.27408206,145.56,145.55,17.1751]
[1719569616120,12.27408206,145.56,145.54,6.8707]
[1719569616328,15.89,145.56,145.54,6.8707]
[1719569617151,12.27425478,145.55,145.54,6.8707]
[1719569618819,12.27411636,145.55,145.54,6.8707]
[1719569620223,12.27411636,145.55,145.53,6.8712]
[1719569620521,15.89,145.56,145.53,6.8712]
[1719569620723,12.2742569,145.55,145.53,6.8712]
[1719569620942,15.89,145.56,145.53,6.8712]
[1719569621244,12.27425578,145.55,145.54,6.8709]
[1719569622020,15.89,145.56,145.54,6.8709]
[1719569622221,12.27411636,145.55,145.54,6.8709]
[1719569625431,12.27400211,145.55,145.54,6.8709]
[1719569625949,12.27400211,145.55,145.53,6.8712]
[1719569626127,12.27400211,145.54,145.53,6.8712]
[1719569626524,12.27400211,145.55,145.53,6.8712]
[1719569627850,12.27400211,145.55,145.54,6.8709]
[1719569628024,12.27400211,145.55,145.54,24.0483]
[1719569628229,15.89,145.58,145.55,6.8701]
[1719569628433,32.27358635,145.57,145.56,6.87]
[1719569629022,32.27338284,145.57,145.56,6.87]
[1719569629228,32.27338284,145.57,145.55,6.8702]
[1719569629434,12.27338284,145.56,145.55,6.8702]
[1719569629632,32.27338284,145.56,145.55,6.8702]
[1719569631761,20.0,145.56,145.55,6.8702]
[1719569632052,32.27345657,145.56,145.55,6.8702]
[1719569633650,32.27345657,145.56,145.54,24.0482]
[1719569633845,20.0,145.56,145.54,24.0482]
[1719569634044,20.0,145.57,145.54,24.0482]
[1719569634241,12.27366678,145.56,145.54,24.0482]
[1719569634555,20.0,145.57,145.54,24.0482]
[1719569634730,12.27366566,145.56,145.54,24.0482]
[1719569634937,12.27366566,145.56,145.54,17.1774]
[1719569635139,42.7596,145.57,145.54,17.1774]
[1719569635443,12.27366678,145.56,145.54,17.1774]
[1719569635634,42.7596,145.57,145.54,17.1774]
[1719569635836,12.2737248,145.56,145.54,17.1774]
[1719569636056,42.7596,145.57,145.54,17.1774]
[1719569636256,12.27372347,145.56,145.54,17.1774]
[1719569636557,42.7596,145.57,145.54,17.1774]
[1719569636745,12.27372286,145.56,145.54,17.1774]
[1719569636943,42.7596,145.57,145.54,17.1774]
[1719569637143,12.27372398,145.56,145.54,17.1774]
[1719569637358,42.7596,145.57,145.54,17.1774]
[1719569637575,12.27372398,145.56,145.54,17.1774]
[1719569637755,42.7596,145.57,145.54,17.1774]
[1719569637954,12.27372398,145.56,145.54,17.1774]
[1719569638145,42.7596,145.57,145.54,17.1774]
[1719569638345,12.2737694,145.56,145.54,17.1774]
[1719569638545,42.7596,145.57,145.54,24.0483]
[1719569638744,12.27377052,145.56,145.55,6.8704]
[1719569638943,12.27377052,145.56,145.55,38.3701]
[1719569639160,10.47514659,145.62,145.58,6.8687]
[1719569639341,32.27292591,145.61,145.58,6.8687]
[1719569639541,12.27292591,145.6,145.58,6.8687]
[1719569639743,12.27292591,145.59,145.58,6.8687]
[1719569640447,6.8665,145.64,145.6,6.8679]
[1719569640645,12.27153773,145.63,145.62,6.8671]
[1719569640852,12.27152896,145.63,145.62,22.7571]
[1719569641239,12.27152896,145.63,145.62,15.89]
[1719569642147,12.27152896,145.63,145.61,22.7575]
[1719569642346,6.8657,145.65,145.61,22.7575]
[1719569642534,37.8517958,145.64,145.61,15.89]
[1719569642749,17.8522958,145.63,145.6,31.4997]
[1719569642949,26.8664,145.64,145.6,38.3678]
[1719569643259,10.98555116,145.63,145.6,38.3678]
[1719569643463,26.8664,145.64,145.6,38.3678]
[1719569645842,6.8658,145.65,145.61,6.8675]
[1719569646054,20.0,145.64,145.61,6.8675]
[1719569646448,15.89,145.67,145.61,15.89]
[1719569646650,30.98519177,145.66,145.61,15.89]
[1719569646866,10.98520307,145.65,145.62,15.89]
[1719569647037,20.0,145.66,145.62,15.89]
[1719569647241,10.98520307,145.65,145.62,15.89]
[1719569647462,26.8655,145.66,145.62,22.757]
[1719569647654,10.98520307,145.65,145.62,22.757]
[1719569647858,26.8655,145.66,145.62,22.757]
[1719569648056,10.98520397,145.65,145.62,22.757]
[1719569648269,6.8657,145.65,145.62,15.89]
[1719569648456,6.8657,145.65,145.61,22.7574]
[1719569648658,6.8662,145.64,145.6,22.4776]
[1719569648967,6.8667,145.63,145.6,22.4776]
[1719569649163,6.8664,145.64,145.6,22.4776]
[1719569650191,20.0,145.66,145.56,21.4816]
[1719569650464,22.7575,145.62,145.58,6.869]
[1719569651057,6.8667,145.63,145.58,15.89]
[1719569651257,22.66528802,145.66,145.58,15.89]
[1719569651258,20.0,145.62,145.6,6.8681]
[1719569651453,20.0,145.62,145.61,6.8676]
[1719569652472,20.0,145.63,145.61,22.7576]
[1719569653074,6.866,145.65,145.61,22.7576]
[1719569653668,20.0,145.64,145.61,22.7576]
[1719569654765,26.8662,145.64,145.61,22.7576]
[1719569654971,26.8662,145.64,145.61,15.89]
[1719569655152,6.8669,145.63,145.59,22.7585]
[1719569655364,6.8672,145.62,145.58,22.7588]
[1719569656150,6.8669,145.63,145.59,6.8685]
[1719569656451,6.8673,145.62,145.58,22.7589]
[1719569657172,20.0,145.64,145.57,6.8693]
[1719569657359,6.8686,145.59,145.56,15.2061]
[1719569657873,6.3171,145.64,145.54,6.8708]
[1719569657874,22.7592,145.58,145.54,6.8708]
[1719569658069,35.89,145.57,145.52,16.1379]
[1719569658252,6.8702,145.56,145.52,23.0094]
[1719569658455,22.7602,145.56,145.53,6.8714]
[1719569658664,22.7602,145.56,145.52,16.1379]
[1719569659064,20.0,145.55,145.52,16.1379]
[1719569659264,20.0,145.55,145.52,23.0095]
[1719569661361,42.7608,145.55,145.51,24.0523]
[1719569661861,15.89,145.54,145.51,24.0523]
[1719569662364,35.89,145.55,145.51,17.1801]
[1719569662568,42.7607,145.55,145.51,24.0524]
[1719569663470,20.0,145.55,145.48,15.0045]
[1719569663775,6.0382,145.58,145.49,6.8732]
[1719569663776,22.7619,145.52,145.49,6.8732]
[1719569664458,15.89,145.52,145.49,6.8732]
[1719569665060,35.89,145.51,145.44,22.5240452]
[1719569665276,35.89,145.51,145.45,15.89]
[1719569665670,35.89,145.51,145.48,6.8735]
[1719569665870,20.0,145.51,145.48,6.8735]
[1719569666064,35.89,145.51,145.48,6.8735]
[1719569666270,35.89,145.51,145.47,17.1854]
[1719569667096,15.89,145.5,145.47,17.1854]
[1719569667795,15.89,145.49,145.47,24.0596]
[1719569667989,15.89,145.49,145.47,17.1854]
[1719569668677,22.7633,145.49,145.45,6.875]
[1719569669188,15.89,145.49,145.46,6.8747]
[1719569670367,6.873,145.5,145.46,6.8747]
[1719569670568,20.0,145.49,145.46,6.8747]
[1719569670887,6.8734,145.49,145.45,6.8751]
[1719569671084,22.7634,145.49,145.45,6.8751]
[1719569671685,15.89,145.47,145.44,24.8932452]
[1719569672069,15.89,145.48,145.45,6.8751]
[1719569672274,20.0,145.47,145.45,6.8751]
[1719569672986,20.0,145.48,145.46,6.8746]
[1719569673570,20.0,145.49,145.46,6.8746]
[1719569675178,26.8734,145.49,145.45,6.875]
[1719569675393,6.8744,145.47,145.44,18.0177452]